Cogmind - Beta 15 @@@ ROGUE MODE // 2025.05.17 @ 00:02:10 Player: Windjigo Result: Destroyed by D-53 Grenadier with Mini Grenade Launcher Performance ------------- Evolutions (0) 0 Regions Visited (2) 400 Robots Destroyed (20) 100 Value Destroyed (363) 363 Prototype IDs (2) 40 Alien Tech Used (0) 0 Bonus (0) 0 TOTAL SCORE: 903 Bonus ------- None Cogmind --------- Core Integrity 0/250 Matter 295/300 Energy 72/100 System Corruption 0% Temperature Cool (0) Movement Core (350) Ox6 Location -10/Mines Parts ------- > --- POWER (1) -------- (None) > --- PROPULSION (2) --- (None) > --- UTILITY (2) ------ Large Storage Unit Sensor Array > --- WEAPON (2) ------- (None) > --- INVENTORY (15) --- Light Ion Engine Improved Heat Sink Medium Storage Unit Weight Redist. System Signal Interpreter Light Armor Plating Hacking Suite Heavy Particle Cannon Heavy Assault Cannon Grenade Launcher Mining Laser Peak State ------------ > --- POWER ------------ Makeshift Power Source > --- PROPULSION ------- Makeshift Leg Wheel > --- UTILITY ---------- Large Storage Unit Sensor Array > --- WEAPON ----------- Heavy Particle Cannon Minigun > --- INVENTORY -------- Light Ion Engine Hover Unit Hover Unit Hover Unit Improved Heat Sink Medium Storage Unit Weight Redist. System Signal Interpreter Light Armor Plating Hacking Suite Heavy Particle Cannon Heavy Assault Cannon Grenade Launcher Mining Laser [Rating: 19] Favorites ----------- Power Ion Engine Engine Ion Engine Propulsion Compact Wheel Leg Aluminum Leg Wheel Compact Wheel Hover Unit Hover Unit Utility Large Storage Unit Device Sensor Array Storage Large Storage Unit Weapon Small Laser Energy Gun Small Laser Energy Cannon Heavy Particle Cannon Ballistic Gun Light Assault Rifle Ballistic Cannon Heavy Assault Cannon Launcher Grenade Launcher Special Weapon Mining Laser Build | -11 -10 -10 ------- Run | Yrd Mat Min Slots Evolved . | . . . Power . | . . . Propulsion . | . . . Utility . | . . . Weapon . | . . . Parts Attached 28 | 10 4 14 Power 3 | 2 . 1 Engine 3 | 2 . 1 Core . | . . . Reactor . | . . . Propulsion 12 | 4 1 7 Treads . | . . . Leg 4 | 2 . 2 Wheel 5 | 2 1 2 Hover 3 | . . 3 Flight . | . . . Utility 4 | 2 2 . Device 2 | 1 1 . Storage 2 | 1 1 . Processor . | . . . Hackware . | . . . Protection . | . . . Artifact . | . . . Weapon 9 | 2 1 6 Energy Gun 2 | 1 . 1 Energy Cannon 2 | . . 2 Ballistic Gun 2 | 1 . 1 Ballistic Cannon 1 | . . 1 Launcher 1 | . . 1 Special Weapon 1 | . 1 . Impact Weapon . | . . . Slashing Weapon . | . . . Piercing Weapon . | . . . Special Melee Weapon . | . . . Unidentified Prototypes . | . . . Parts Lost 8 | . . 8 Power 1 | . . 1 Propulsion 5 | . . 5 Utility . | . . . Weapon 2 | . . 2 Highest Loss Streak 7 | . . 7 To Critical Strikes . | . . . Average Backups 11 | 3 9 13 Power . | . 1 1 Propulsion 4 | 1 4 3 Utility 3 | . 2 5 Weapon 2 | . 2 3 Tool/Special . | . . . Unused Backups 10 | . . 10 Power . | . . . Propulsion 2 | . . 2 Utility 8 | . . 8 Weapon . | . . . Tool/Special . | . . . Average Slot Usage (%) 99 | . 99 98 Engine 13 | . 14 13 Leg 5 | . . 10 Wheel 21 | . 27 17 Device 14 | . 14 14 Storage 14 | . 14 14 Energy Gun 7 | . 12 4 Energy Cannon 5 | . . 10 Ballistic Gun 11 | . 14 9 Special Weapon 2 | . 1 2 Peak Build Rating 19 | 7 8 19 Average Rating 10 | 4 7 13 On Entrance 5 | . 7 8 Naked Turns . | . . . Heaviest Build 38 | 13 28 38 Greatest Support 30 | 26 26 30 Greatest Overweight (x) 8 | . 1 8 Average Overweight (x) . | . . 1 Largest Inventory Capacity 15 | 8 15 15 Average Capacity 14 | 6 14 15 Most Carried 15 | 5 13 15 Average Carried 12 | 4 9 14 Final Capacity 15 | 8 15 15 Final Carried 13 | 4 13 12 Class Distribution -------------------- 100% | Mutant Dominant Class ---------------- Mutant | -10/Materials Mutant | -10/Mines Resources | -11 -10 -10 ----------- Run | Yrd Mat Min Matter Collected 553 | 31 237 285 Remotely . | . . . Salvage Created 528 | 14 363 151 Parts 41 | 3 32 6 Haulers Intercepted 2 | . 2 . Recyclers Shooed . | . . . Parts Field Recycled . | . . . Retrieved Matter . | . . . Parts Self-Destructed . | . . . Prevented . | . . . Kills | -11 -10 -10 ------- Run | Yrd Mat Min Combat Hostiles Destroyed 13 | . 9 4 Guns 10 | . 9 1 Cannons 3 | . . 3 Classes Destroyed 8 | 1 6 1 Worker 2 | . 1 1 Tunneler 1 | 1 . . Hauler 2 | . 2 . Operator 1 | . 1 . Watcher 1 | . 1 . Swarmer 7 | . 6 1 Grunt 5 | . 3 2 Sentry 1 | . . 1 Best Kill Streak 4 | 1 4 2 Combat Bots Only 4 | . 4 2 Max Kills in Single Turn 1 | 1 1 1 Gunslinging . | . . . Exploded . | . . . Melee . | . . . Uniques/NPCs Destroyed . | . . . Combat | -11 -10 -10 -------- Run | Yrd Mat Min Hostile Shots Fired 79 | . 50 29 Missed 15 | . 10 5 Hits 64 | . 40 24 Projectile 64 | . 40 24 AOE 15 | . . 15 Critical Strikes 1 | . 1 . Damage Taken 1138 | . 367 771 Core 254 | . 118 136 Absorbed by Shields . | . . . Core Remaining (%) 100 | 100 . . Volleys Fired 75 | 2 58 15 Largest 2 | 2 2 2 Hottest 150 | 60 120 150 Shots Fired 144 | 4 114 26 Gun 124 | 4 111 9 Cannon 14 | . . 14 Launcher . | . . . Special 6 | . 3 3 Kinetic 66 | 2 58 6 Thermal 78 | 2 56 20 Explosive . | . . . Electromagnetic . | . . . Robot Hit Streak 11 | 1 11 6 Robot Miss Streak 5 | 2 5 1 Penetration Max . | . . . Secondary Targets 3 | . 3 . Max Gunslinging Chain 1 | . 1 . Shots Hit Robots 81 | 1 64 16 Core Hits 32 | 1 26 5 Critical Kills . | . . . Critical Parts Destroyed . | . . . Critical Strikes . | . . . Melee Attacks . | . . . Impact . | . . . Slashing . | . . . Piercing . | . . . Sneak Attacks . | . . . Combat Hostiles . | . . . Follow-up Attacks . | . . . Damage Inflicted 935 | 12 623 300 Guns 712 | 12 623 77 Cannons 175 | . . 175 Explosions . | . . . Melee . | . . . Ramming . | . . . Kinetic 295 | . 240 55 Thermal 640 | 12 383 245 Explosive . | . . . Electromagnetic . | . . . Impact . | . . . Slashing . | . . . Piercing . | . . . Highest Corruption . | . . . Average Corruption . | . . . Corruption Purged . | . . . Corruption Blocked . | . . . Overload Shots . | . . . Overflow Damage 25 | . . 25 Projectiles 25 | . . 25 Explosions . | . . . Melee . | . . . Knockbacks . | . . . Impact . | . . . Kinetic . | . . . Secondary . | . . . Self-Inflicted Damage . | . . . Shots . | . . . Rammed . | . . . Targets Rammed . | . . . Kicked . | . . . Crushed . | . . . Highest Temperature 369 | 40 82 369 Average Temperature 62 | 24 28 126 Received Heat Transfer 123 | . 66 57 Effects 1 | . . 1 Shutdowns 1 | . . 1 Siege Activations . | . . . Martial Activations . | . . . Shielding Activations . | . . . Robots Disrupted . | . . . Combat Hostiles . | . . . Robots Corrupted . | . . . Combat Hostiles . | . . . Parts Fried . | . . . Impact Corruptions . | . . . Robots Melted . | . . . Combat Hostiles . | . . . Parts Melted 1 | . . 1 Heat Transferred 1284 | 25 850 409 Parts Sabotaged . | . . . Parts Stolen . | . . . Parts Stripped . | . . . Power Chain Reactions . | . . . Alert | -11 -10 -10 ------- Run | Yrd Mat Min Maximum Alert Level . | . . . Low Security (%) 100 | 100 100 100 Level 1 . | . . . Level 2 . | . . . Level 3 . | . . . Level 4 . | . . . Level 5 . | . . . High Security . | . . . Max Security . | . . . Peak Influence 100 | 5 100 30 Initial 12 | . . 12 Average 16 | . 35 3 Influence Increases 411 | 5 288 118 Destroy 0b10 Robot/C 260 | . 180 80 Destroy 0b10 Robot/NC 35 | 5 25 5 Destroy Leader 56 | . 46 10 Allied During Kill 3 | . . 3 Successful Hack 22 | . 22 . Disable Machine 30 | . 15 15 Destroy Structure 5 | . . 5 Influence Decreases 411 | 5 255 151 Entered New Map 21 | . . 21 Time Decay 361 | 5 255 101 Lost Ally 29 | . . 29 Squads Dispatched 3 | . 3 . Investigation . | . . . Extermination . | . . . Reinforcement 3 | . 3 . Assault . | . . . Garrison . | . . . Intercept . | . . . Searches Triggered . | . . . Construction Impeded . | . . . Haulers Reinforced . | . . . Active Scanning Responses . | . . . Cargo Convoy Interrupts . | . . . Stealth | -11 -10 -10 --------- Run | Yrd Mat Min Distress Signals . | . . . Communications Jammed . | . . . Distress Signals . | . . . Times Spotted 25 | . 17 8 Peak Tracking Total 4 | . 4 2 Tactical Retreats . | . . . Traps | -11 -10 -10 ------- Run | Yrd Mat Min Traps Triggered 1 | . 1 . Indirectly . | . . . Trap Hack Attempts . | . . . Triggered . | . . . Disarmed . | . . . Reprogrammed . | . . . Reused . | . . . Traps Extracted . | . . . Installed . | . . . Triggered . | . . . Machines | -11 -10 -10 ---------- Run | Yrd Mat Min Machines Disabled 2 | . 1 1 Max in Single Turn 1 | . 1 1 Machines Repaired . | . . . Machines Dismantled . | . . . Machines Sabotaged . | . . . Overloaded Fab Kills . | . . . Hacking | -11 -10 -10 --------- Run | Yrd Mat Min Machines Accessed 5 | . 4 1 Terminals 4 | . 4 . Fabricators . | . . . Repair Stations . | . . . Recycling Units . | . . . Scanalyzers . | . . . Garrison Access . | . . . Total Hacks 19 | . 18 1 Successful 9 | . 8 1 Failed 10 | . 10 . Catastrophic . | . . . Database Lockouts . | . . . Manual . | . . . Terminals 18 | . 18 . Fabricators . | . . . Repair Stations . | . . . Recycling Units . | . . . Scanalyzers . | . . . Garrison Access . | . . . Terminal Hacks 9 | . 8 1 Prototype ID Bank 1 | . 1 . Open Door 1 | . . 1 Emergency Access Points 1 | . 1 . Alert Level 2 | . 2 . Locate Traps 2 | . 2 . Dispatch Records 1 | . 1 . Hauler Manifests 1 | . 1 . Fabricator Hacks . | . . . Repair Station Hacks . | . . . Recycling Unit Hacks . | . . . Scanalyzer . | . . . Garrison Access Hacks . | . . . Unauthorized Hacks . | . . . Terminals . | . . . Fabricators . | . . . Repair Stations . | . . . Recycling Units . | . . . Scanalyzers . | . . . Garrison Access . | . . . Data Cores Recovered . | . . . Used . | . . . Hacking Detections 3 | . 3 . Full Trace Events 1 | . 1 . Feedback Events . | . . . Feedback Blocked . | . . . Robot Schematics Acquired . | . . . Robots Built . | . . . Authchips . | . . . Time . | . . . Total Robot Build Rating . | . . . Part Schematics Acquired . | . . . Parts Built . | . . . Authchips . | . . . Time . | . . . Total Part Build Rating . | . . . Parts Repaired . | . . . Time . | . . . Parts Recycled . | . . . Recycled Matter . | . . . Retrieved Matter . | . . . Retrieved Components . | . . . Parts Scanalyzed . | . . . Part Schematics Acquired . | . . . Parts Damaged . | . . . Bothacking | -11 -10 -10 ------------ Run | Yrd Mat Min Used RIF Installer . | . . . Robots Hacked . | . . . Non-combat . | . . . Combat . | . . . Robot Hacks Applied . | . . . Relay Couplers Released . | . . . Fabnet Peak Effective % . | . . . Robots Rewired . | . . . Allies Hacked . | . . . Hacks Repelled . | . . . Allies | -11 -10 -10 -------- Run | Yrd Mat Min Total Allies 2 | . . 2 Largest Group 2 | . . 2 Highest-Rated Group 43 | . . 43 Highest-Rated Ally 31 | . . 31 Total Orders . | . . . Ally Attacks 5 | . . 5 Total Damage 86 | . . 86 Kills . | . . . Allies Corrupted . | . . . Allies Melted . | . . . Intel | -11 -10 -10 ------- Run | Yrd Mat Min Active Infowar (turns) 1721 | 7 742 972 Sensors 1005 | . 33 972 Seismic 716 | 7 709 . Robot Analysis Total . | . . . Derelict Logs Recovered 1 | . . 1 Drone Launches . | . . . Drone Recoveries . | . . . Exploration | -11 -10 -10 ------------- Run | Yrd Mat Min Turns Passed 1780 | 66 742 972 Spaces Moved 1111 | 50 460 601 Core 15 | 14 . 1 Treads . | . . . Legs 141 | 5 . 136 Wheels 955 | 31 460 464 Hover . | . . . Flight . | . . . Fastest Speed 50 | 50 90 90 Average Speed 115 | 81 104 127 Slowest Speed 450 | 120 115 450 Overloaded Moves . | . . . Propulsion Burnouts . | . . . Robots Hopped . | . . . Potential Cave-ins . | . . . Cave-ins Triggered . | . . . Exploration Rate (%) 47 | 3 59 80 Regions Visited 2 Branch Regions 1 Pre-discovered Areas 1 | . . 1 Known Exits Taken . | . . . Unknown Exits Taken 2 | 1 1 . Scrap Searched 2 | . . 2 Spaces Dug . | . . . Terrain Destroyed 5 | . . 5 Melee . | . . . Projectile 5 | . . 5 AOE . | . . . Terrain Rammed . | . . . Walls Destroyed . | . . . Machines Disabled . | . . . Actions | -11 -10 -10 --------- Run | Yrd Mat Min Total 1458 | 67 610 781 Wait 192 | . 70 122 Move 1109 | 49 459 601 Hop . | . . . Pick Up 32 | 6 14 12 Fast Attach 8 | 5 . 3 Attach 8 | 2 1 5 Detach . | . . . Swap 15 | 3 4 8 Drop 19 | . 4 15 Fire 75 | 2 58 15 Melee . | . . . Ram . | . . . Kick . | . . . Crush . | . . . Escape Stasis . | . . . Rewire . | . . . Trap . | . . . Miscellaneous . | . . . Route ------- -11/Scrapyard -10/Materials (discovered 2 exits: [*Mat] / *Min) -10/Mines (discovered 1 exit: [*Mat]) History --------- Turn | Location | Event 36 | -11/Scrapyard | Discovered new exit (range 14) 67 | -11/Scrapyard | Entered Materials 313 | -10/Materials | Build established: Mutant 480 | -10/Materials | Discovered new exit (range 5) 717 | -10/Materials | Discovered new exit (range 16) 809 | -10/Materials | Entered Mines 811 | -10/Mines | Met a Derelict bent on vengeance 955 | -10/Mines | Learned location of Storage (-8) 1120 | -10/Mines | Met a Derelict who couldn't figure out how to use a Trap Extractor 1306 | -10/Mines | Joined a pair of Derelicts in attacking an 0b10 outpost 1380 | -10/Mines | Core integrity fell below 50% 1438 | -10/Mines | Discovered new exit (range 8) 1755 | -10/Mines | Assembled infested the area 1760 | -10/Mines | Assisted by a Guerilla fighting off Assembled 1772 | -10/Mines | Core integrity fell below 20% 1781 | -10/Mines | Destroyed by D-53 Grenadier with Mini Grenade Launcher Last Messages --------------- group of Assembled to figure out where they're coming from, and they're closing on this area, come on!" 01764_ C-30 ARC bursts open, deploying its payload. 01764_ D-53 Grenadier unfolds itself. 01766_ PI-12M(h): "I'll hold them off! Go on ahead or try to find another way!" 01766_ HV Slug penetrates Wall. 01767_ PI-12M(h) destroyed. 01773_ Mak. Leg destroyed. 01775_ Hover Unit destroyed. 01775_ Mak. Power Source destroyed. 01775_ Minigun destroyed. 01775_ Dropped Aluminum Leg. 01777_ The unstable cave ceiling collapses. 01777_ Hover Unit destroyed. 01778_ The unstable cave ceiling collapses. 01779_ Hvy. Particle Cannon destroyed. 01780_ The unstable cave ceiling collapses. Map ----- +----------------------------------------------------+ | ???????????????????????????????????????????????## | | ??????????????????????????????????????????????## | | ????????????????????????????????????####?????## | | ???????????????????????????????????## ##????# | | ???????????????????????????????????# ##???# | | ??????????????????????????????????## ##??# | | ??????????????????????????????????# ##??# | | ????????????????????????????#####?# ##??# | | ????????????????????????????? #?# ##??# | | ?????????????????????????????# ### ###?# | | ?????????????????????????????# ## ### | | ?????????????????????????????# # | | ?????????????????????????????# | | ??????????????????????????#### ### ## | | ????????????????????????### ####?## #? | | ???????????????????????## ##?????## ##? | | ???????????????##??????# ##???????######?? | | ???????????????# ??????# ##???????????????? | | ???????????????# #?????## #####????????????????? | | ??????????????##% ###########?????????????????#### | | ??????????????# # ###?????????????????## | | ??????????????# ###?????###??????## | | ?????????????## d #????## ##????## | | ?????????????# d # ###### #????# | | ?????????????# ###### | | ?????????????# @ | | ?????????????# ## ## | | ?????????????## #### ########## | | ??????????????###### ##??# #????????#### | | ???????????????????### ##### #???????????#### | | ???????????????????# t #??????????????? | | ???????????????????# ##############??????????????? | | ????????????####???#t#????????????????####???????? | | ???????????## #???# #???????????????## ##??????? | | ?????????### #?### #???????????????# ##?????? | | ???????### ### #####???????????# ##????? | | ??????## ### #### ##???????????# ##???? | | ??????# #### #?# ##????##????# ##??? | | ??????# ####??# ### ##???####### #??? | | ??????# ##?????# ## % #??##"%## ##?? | | ??????# #?????## #??#""!=# ##? | | ??????# ##??#### ##??#!][!+ ## | | ??????# #???# ##???#![!=+ ### | | ??????# #???# ### ######?#""!=# ##?## | | ???#??# ##### #?# #### ####" ## #???# | | ???# ## ### ###### #???## | | ???# ######## # ### ##????## | | ???#### ##????## ## ### #???????# | | ??????# ##??## ## ## ## #???????? | | ??##### #??# ## ## ### #???????? | +----------------------------------------------------+ Best States ------------- Heat Dissipation 25 Energy Generation 15 Energy Capacity 250 Matter Stores 300 Matter Capacity 300 Sight Range 16 Robot Scan Range 14 Terrain Scan Density 10 Evasion (%) 50 Item Schematics ----------------- None Robot Schematics ------------------ None Fabricated ------------ Nothing Repaired ---------- Nothing Alien Tech Used ----------------- None Achievements -------------- None Challenges ------------ None Game ------ Seed PointTechMonowheel Manual? 0 Play Time 00:19:07 Cumulative 23.7 hours Start 2025.05.16 @ 23:44:58 End 2025.05.17 @ 00:02:10 Sessions 1 Manual Loads 0 Difficulty Rogue Special Mode None Game No. 18 Rogue 18 Adventurer 0 Explorer 0 Win Type - Total 0 Types 0/0/0/0/0/0/0/0/0/0 Lore% 27 Gallery% 23 Achievement% 20 Wizard Run 0 Options --------- Layout 1 ASCII 0 Keyboard 0 Movement Mouse Keybinds 0 Fullscreen 1 Font 24/Smallcaps Map View 50x35 Zoom Use 0% Tactical HUD 1 Map Filters NONE Filters NONE Steam 1 RUN: 3ca5e55c-3770-4f27-8153-2e4c93bc397e